fUSD/lending_fUSD_20240526
["ID","MTS","AMOUNT","RATE_DAILY","PERIOD"]
[327972330,1716732651631,-500.0,0.00027397,4]
[327972331,1716732651641,-2564.82,0.00027397,4]
[327972332,1716732651650,-818.52,0.00027397,4]
[327972333,1716732651659,-500.0,0.00027397,4]
[327972334,1716732651668,-2538.12,0.00027397,4]
[327972335,1716732651679,-571.73,0.00027397,4]
[327972336,1716732651690,-500.0,0.00027397,4]
[327972337,1716732651700,-598.56,0.00027397,4]
[327972338,1716732651709,-500.0,0.00027397,4]
[327972339,1716732651719,-151.0,0.00027397,7]
[327972340,1716732651729,-2937.07,0.00027397,4]
[327972341,1716732651738,-1041.17,0.00027397,4]
[327972342,1716732651747,-500.0,0.00027397,4]
[327972343,1716732651757,-500.0,0.00027397,4]
[327972344,1716732651767,-656.51,0.00027397,4]
[327972345,1716732651776,-500.0,0.00027397,4]
[327972346,1716732651786,-1310.5,0.00027397,4]
[327972347,1716732651795,-500.0,0.00027397,4]
[327972348,1716732651804,-552.73,0.00027397,4]
[327972349,1716732651814,-967.98,0.00027397,4]
[327972350,1716732651823,-500.0,0.00027397,4]
[327972351,1716732651833,-500.0,0.00027397,4]
[327972352,1716732651842,-151.0,0.00027397,7]
[327972353,1716732651852,-1148.48,0.00027397,4]
[327972354,1716732651861,-795.96,0.00027397,4]
[327972355,1716732651871,-678.18,0.00027397,4]
[327972356,1716732651881,-500.0,0.00027397,4]
[327972357,1716732651890,-576.35,0.00027397,4]
[327972358,1716732651899,-500.0,0.00027397,4]
[327972359,1716732651909,-606.32,0.00027397,4]
[327972360,1716732651918,-585.71,0.00027397,4]
[327972361,1716732651928,-1027.88,0.00027397,4]
[327972362,1716732651937,-2390.71,0.00027397,4]
[327972363,1716732651947,-393.97557818,0.00027397,4]
[327972364,1716732651957,-500.0,0.00027397,4]
[327972365,1716732651967,-720.94,0.00027397,4]
[327972366,1716732651976,-856.1063,0.00027397,7]
[327972367,1716732651986,-884.01,0.00027397,4]
[327972368,1716732651996,-151.0,0.00027397,7]
[327972369,1716732652005,-371.37065,0.00027397,7]
[327972370,1716732652015,-272.28412,0.00027397,7]
[327972371,1716732652025,-571.26,0.00027397,4]
[327972372,1716732652034,-1408.04,0.00027397,4]
[327972373,1716732652044,-371.37065,0.00027397,7]
[327972374,1716732652054,-500.0,0.00027397,4]
[327972375,1716732652063,-500.0,0.00027397,4]
[327972376,1716732652075,-500.0,0.00027397,4]
[327972377,1716732652084,-856.1063,0.00027397,7]
[327972378,1716732652093,-500.0,0.00027397,4]
[327972379,1716732652107,-151.0,0.00027397,7]
[327972380,1716732652116,-1268.26,0.00027397,4]
[327972381,1716732652126,-1085.42,0.00027397,4]
[327972382,1716732652135,-8694.34,0.00027397,4]
[327972383,1716732652146,-151.0,0.00027397,7]
[327972384,1716732652156,-500.0,0.00027397,4]
[327972385,1716732652166,-1268.05,0.00027397,4]
[327972386,1716732652176,-1448.06,0.00027397,4]
[327972387,1716732652186,-972.62,0.00027397,4]
[327972388,1716732652196,-500.0,0.00027397,4]
[327972389,1716732652206,-3904.28,0.00027397,4]
[327972390,1716732652215,-500.0,0.00027397,4]
[327972391,1716732652225,-573.16,0.00027397,4]
[327972392,1716732652234,-914.87,0.00027397,4]
[327972393,1716732652244,-151.0,0.00027397,7]
[327972394,1716732652253,-500.0,0.00027397,4]
[327972395,1716732652263,-1089.59,0.00027397,4]
[327972396,1716732652273,-151.0,0.00027397,7]
[327972397,1716732652283,-500.0,0.00027397,4]
[327972398,1716732652292,-500.0,0.00027397,4]
[327972399,1716732652302,-885.34,0.00027397,4]
[327972400,1716732652311,-151.0,0.00027397,7]
[327972401,1716732652321,-500.0,0.00027397,4]
[327972402,1716732652331,-591.51,0.00027397,4]
[327972403,1716732652341,-500.0,0.00027397,4]
[327972404,1716732652350,-290.5915,0.00027397,7]
[327972405,1716732652360,-1079.94,0.00027397,4]
[327972406,1716732652370,-879.76,0.00027397,4]
[327972407,1716732652379,-1841.81,0.00027397,4]
[327972408,1716732652389,-500.0,0.00027397,4]
[327972409,1716732652400,-500.0,0.00027397,4]
[327972410,1716732652410,-1638.97,0.00027397,4]
[327972411,1716732652421,-500.0,0.00027397,4]
[327972412,1716732652431,-625.43,0.00027397,4]
[327972413,1716732652440,-1077.58,0.00027397,4]
[327972414,1716732652449,-500.0,0.00027397,4]
[327972415,1716732652463,-710.46,0.00027397,4]
[327972416,1716732652473,-647.72,0.00027397,4]
[327972417,1716732652483,-568.85,0.00027397,4]
[327972418,1716732652493,-500.0,0.00027397,4]
[327972419,1716732652503,-678.18,0.00027397,4]
[327972420,1716732652513,-869.84,0.00027397,4]
[327972421,1716732652523,-151.0,0.00027397,7]
[327972422,1716732652532,-500.0,0.00027397,4]
[327972423,1716732652544,-500.0,0.00027397,4]
[327972424,1716732652554,-717.42,0.00027397,4]
[327972425,1716732652564,-576.0,0.00027397,4]
[327972426,1716732652574,-1137.45,0.00027397,4]
[327972427,1716732652584,-500.0,0.00027397,4]
[327972428,1716732652593,-151.0,0.00027397,7]
[327972429,1716732652603,-151.0,0.00027397,7]
[327972430,1716732652613,-500.0,0.00027397,4]
[327972431,1716732652622,-500.0,0.00027397,4]
[327972432,1716732652632,-500.0,0.00027397,4]
[327972433,1716732652643,-500.0,0.00027397,4]
[327972434,1716732652653,-1101.55,0.00027397,4]
[327972435,1716732652663,-623.77,0.00027397,4]
[327972436,1716732652672,-504.89,0.00027397,4]
[327972437,1716732652682,-151.85282,0.00027397,7]
[327972438,1716732652691,-570.33,0.00027397,4]
[327972439,1716732652701,-853.64,0.00027397,4]
[327972440,1716732652710,-500.0,0.00027397,4]
[327972441,1716732652719,-151.0,0.00027397,7]
[327972442,1716732652729,-1592.22,0.00027397,4]
[327972443,1716732652738,-500.0,0.00027397,4]
[327972444,1716732652748,-1027.97,0.00027397,4]
[327972445,1716732652757,-1044.37,0.00027397,4]
[327972446,1716732652767,-500.0,0.00027397,4]
[327972447,1716732652776,-500.0,0.00027397,4]
[327972448,1716732652786,-1313.69,0.00027397,4]
[327972449,1716732652795,-624.18,0.00027397,4]
[327972450,1716732652805,-500.0,0.00027397,4]
[327972451,1716732652814,-1190.26,0.00027397,4]
[327972452,1716732652824,-4137.91,0.00027397,4]
[327972453,1716732652833,-1036.79,0.00027397,4]
[327972454,1716732652843,-151.0,0.00027397,7]
[327972455,1716732652852,-500.0,0.00027397,4]
[327972456,1716732652862,-500.0,0.00027397,4]
[327972457,1716732652871,-850.51,0.00027397,4]
[327972458,1716732652880,-500.0,0.00027397,4]
[327972459,1716732652890,-916.61,0.00027397,4]
[327972460,1716732652900,-1474.98,0.00027397,4]
[327972461,1716732652909,-707.12,0.00027397,4]
[327972462,1716732652918,-151.0,0.00027397,7]
[327972463,1716732652928,-500.0,0.00027397,4]
[327972464,1716732652937,-500.0,0.00027397,4]
[327972465,1716732652947,-2412.83,0.00027397,4]
[327972466,1716732652957,-500.0,0.00027397,4]
[327972467,1716732652966,-500.0,0.00027397,4]
[327972468,1716732652976,-500.0,0.00027397,4]
[327972469,1716732652986,-687.58,0.00027397,4]
[327972470,1716732652995,-500.0,0.00027397,4]
[327972471,1716732653005,-1038.84,0.00027397,4]
[327972472,1716732653014,-500.0,0.00027397,2]
[327972473,1716732653024,-500.0,0.00027397,4]
[327972474,1716732653033,-500.0,0.00027397,4]
[327972475,1716732653042,-654.73,0.00027397,4]
[327972476,1716732653052,-928.91,0.00027397,4]
[327972477,1716732653061,-500.0,0.00027397,4]
[327972478,1716732653071,-592.19,0.00027397,4]
[327972479,1716732653080,-502.52,0.00027397,4]
[327972480,1716732653090,-500.0,0.00027397,4]
[327972481,1716732653100,-500.0,0.00027397,4]
[327972482,1716732653109,-500.0,0.00027397,4]
[327972483,1716732653119,-1244.5,0.00027397,4]
[327972484,1716732653128,-901.87,0.00027397,4]
[327972485,1716732653138,-827.03,0.00027397,4]
[327972486,1716732653150,-586.69,0.00027397,4]
[327972487,1716732653160,-793.2,0.00027397,4]
[327972488,1716732653170,-501.48,0.00027397,4]
[327972489,1716732653180,-151.546611,0.00027397,7]
[327972490,1716732653190,-709.61,0.00027397,4]
[327972491,1716732653200,-500.0,0.00027397,4]
[327972492,1716732653209,-625.6,0.00027397,4]
[327972493,1716732653219,-193.036136,0.00027397,7]
[327972494,1716732653228,-193.036136,0.00027397,7]
[327972495,1716732653237,-200.0,0.000274,2]
[327972496,1716732653248,-153.93863298,0.00027487,2]
[327972497,1716732653257,-150.0,0.00027499,10]
[327972498,1716732653266,-150.0,0.00027499,10]
[327972499,1716732653275,-374476.71244572,0.000275,5]
[327972500,1716732653284,-154.469983,0.000275,7]
[327972501,1716732653294,-164.13742,0.000275,7]
[327972502,1716732653304,-154.80095,0.000275,7]
[327972503,1716732653313,-153.520225,0.000275,7]
[327972504,1716732653323,-155.187533,0.000275,7]
[327972505,1716732653333,-151.0,0.000275,7]
[327972506,1716732653343,-151.0,0.000275,7]
[327972507,1716732653353,-151.0,0.000275,7]
[327972508,1716732653364,-151.0,0.000275,7]
[327972509,1716732653374,-151.0,0.000275,7]
[327972510,1716732653384,-151.0,0.000275,7]
[327972511,1716732653395,-151.0,0.000275,7]
[327972512,1716732653405,-151.0,0.000275,7]
[327972513,1716732653415,-220.294176,0.000275,7]
[327972514,1716732653425,-151.0,0.000275,7]
[327972515,1716732653435,-151.0,0.000275,7]
[327972516,1716732653446,-241.326377,0.000275,7]
[327972517,1716732653464,-151.0,0.000275,7]
[327972518,1716732653474,-193.036136,0.000275,7]
[327972519,1716732653484,-193.036136,0.000275,7]
[327972520,1716732653495,-151.0,0.000275,7]
[327972521,1716732653508,-151.0,0.000275,7]
[327972522,1716732653518,-151.0,0.000275,7]
[327972523,1716732653528,-151.0,0.000275,7]
[327972524,1716732653539,-151.0,0.000275,7]
[327972525,1716732653549,-151.0,0.000275,7]
[327972526,1716732653561,-151.0,0.000275,7]
[327972527,1716732653571,-151.0,0.000275,7]
[327972528,1716732653582,-151.0,0.000275,7]
[327972529,1716732653592,-151.0,0.000275,7]
[327972530,1716732653603,-151.0,0.000275,7]
[327972531,1716732653613,-151.0,0.000275,7]
[327972532,1716732653623,-371.37065,0.000275,7]
[327972533,1716732653634,-856.1063,0.000275,7]
[327972534,1716732653645,-371.37065,0.000275,7]
[327972535,1716732653655,-856.1063,0.000275,7]
[327972536,1716732653665,-153.423679,0.000275,7]
[327972537,1716732653675,-151.0,0.000275,7]
[327972538,1716732653686,-179.033728,0.000275,7]
[327972539,1716732653697,-151.0,0.000275,7]
[327972540,1716732653708,-151.0,0.000275,7]
[327972541,1716732653718,-188.580352,0.000275,7]
[327972542,1716732653728,-151.0,0.000275,7]
[327972543,1716732653739,-151.0,0.000275,7]
[327972544,1716732653750,-168.945474,0.000275,7]
[327972545,1716732653760,-156.716515,0.000275,7]
[327972546,1716732653771,-303.29216816,0.000275,2]
[327972547,1716732653781,-151.0,0.000275,7]
[327972548,1716732653792,-154.08200239,0.0002754,2]
[327972549,1716732653802,-4121.47,0.00027556,2]
[327972550,1716732653813,-159.0,0.000276,2]
[327972551,1716732653823,-41374.72,0.000276,7]
[327972552,1716732653834,-1500.0,0.000276,2]
[327972553,1716732653844,-153.93863298,0.00027604,2]
[327972554,1716732653855,-153.93863298,0.00027607,2]
[327972555,1716732653865,-160.61,0.00027641,2]
[327972556,1716732653876,-24646.0,0.00027641,5]
[327972557,1716732653886,-155.0,0.00027669,2]
[327972558,1716732653898,-599.06685493,0.00027669,2]
[327972559,1716732653908,-1258.1774,0.00027669,2]
[327972560,1716732653919,-623.69279949,0.00027669,2]
[327972561,1716732653930,-4181.57941084,0.00027669,2]
[327972562,1716732653940,-264.52157603,0.00027669,2]
[327972563,1716732653950,-152.35228072,0.00027669,2]
[327972564,1716732653960,-150.0,0.0002767,10]
[327972565,1716732653970,-155.0,0.0002767,2]
[327972566,1716732653980,-2329.28437138,0.0002767,2]
[327972567,1716732653991,-150.01,0.0002767,2]
[327972568,1716732654001,-3191.46404767,0.0002767,2]
[327972569,1716732654011,-500.0,0.00027671,4]
[327972570,1716732654021,-500.0,0.00027671,4]
[327972571,1716732654032,-500.0,0.00027671,4]
[327972572,1716732654043,-500.0,0.00027671,4]
[327972573,1716732654053,-500.0,0.00027671,4]
[327972574,1716732654063,-500.0,0.00027671,4]
[327972575,1716732654073,-500.0,0.00027671,4]
[327972576,1716732654084,-867.51,0.00027671,4]
[327972577,1716732654094,-500.0,0.00027671,4]
[327972578,1716732654105,-500.0,0.00027671,4]
[327972579,1716732654116,-500.0,0.00027671,4]
[327972580,1716732654126,-500.0,0.00027671,4]
[327972581,1716732654137,-645.89434643,0.00027671,4]
[327972582,1716732654149,-500.0,0.00027671,4]
[327972583,1716732654160,-500.0,0.00027671,4]
[327972584,1716732654171,-500.0,0.00027671,4]
[327972585,1716732654182,-613.37,0.00027671,4]
[327972586,1716732654193,-500.0,0.00027671,4]
[327972587,1716732654204,-500.0,0.00027671,4]
[327972588,1716732654214,-689.25,0.00027671,4]
[327972589,1716732654225,-912.17,0.00027671,4]
[327972590,1716732654235,-500.0,0.00027671,4]
[327972591,1716732654246,-500.0,0.00027671,4]
[327972592,1716732654257,-500.0,0.00027671,4]
[327972593,1716732654267,-500.0,0.00027671,4]
[327972594,1716732654278,-577.1,0.00027671,4]
[327972595,1716732654288,-500.0,0.00027671,4]
[327972596,1716732654299,-500.0,0.00027671,4]
[327972597,1716732654310,-500.0,0.00027671,4]
[327972598,1716732654320,-500.0,0.00027671,4]
[327972599,1716732654331,-500.0,0.00027671,4]
[327972600,1716732654341,-3083.08,0.00027671,4]
[327972601,1716732654351,-500.0,0.00027671,4]
[327972602,1716732654362,-500.0,0.00027671,4]
[327972603,1716732654372,-691.79,0.00027671,4]
[327972604,1716732654383,-500.0,0.00027671,4]
[327972605,1716732654395,-500.0,0.00027671,4]
[327972606,1716732654404,-500.0,0.00027671,4]
[327972607,1716732654414,-1003.57,0.00027671,4]
[327972608,1716732654424,-500.0,0.00027671,4]
[327972609,1716732654435,-702.93,0.00027671,4]
[327972610,1716732654445,-500.0,0.00027671,4]
[327972611,1716732654459,-500.0,0.00027671,4]
[327972612,1716732654469,-500.0,0.00027671,4]
[327972613,1716732654480,-900.58,0.00027671,4]
[327972614,1716732654490,-500.0,0.00027671,4]
[327972615,1716732654502,-891.34,0.00027671,4]
[327972616,1716732654513,-838.16,0.00027671,2]
[327972617,1716732654523,-500.0,0.00027671,4]
[327972618,1716732654533,-500.0,0.00027671,4]
[327972619,1716732654546,-500.0,0.00027671,2]
[327972620,1716732654557,-615.98,0.00027671,4]
[327972621,1716732654568,-576.75,0.00027671,4]
[327972622,1716732654579,-500.0,0.00027671,4]
[327972623,1716732654589,-767.17,0.00027671,4]
[327972624,1716732654599,-500.0,0.00027671,4]
[327972625,1716732654609,-500.0,0.00027671,4]
[327972626,1716732654620,-500.0,0.00027671,4]
[327972627,1716732654631,-500.0,0.00027671,4]
[327972628,1716732654642,-369.05054093,0.00027671,4]
[327972629,1716732654652,-633.88,0.00027671,4]
[327972630,1716732654662,-500.0,0.00027671,4]
[327972631,1716732654673,-500.0,0.00027671,4]
[327972632,1716732654683,-500.0,0.00027671,4]
[327972633,1716732654693,-758.6,0.00027671,4]
[327972634,1716732654704,-1363.1,0.00027671,4]
[327972635,1716732654714,-500.0,0.00027671,4]
[327972636,1716732654724,-500.0,0.00027671,4]
[327972637,1716732654734,-500.0,0.00027671,4]
[327972638,1716732654744,-535.29,0.00027671,4]
[327972639,1716732654754,-500.0,0.00027671,4]
[327972640,1716732654764,-500.0,0.00027671,4]
[327972641,1716732654774,-500.0,0.00027671,4]
[327972642,1716732654784,-500.0,0.00027671,4]
[327972643,1716732654794,-596.76,0.00027671,4]
[327972644,1716732654805,-500.0,0.00027671,4]
[327972645,1716732654815,-500.0,0.00027671,4]
[327972646,1716732654825,-500.0,0.00027671,4]
[327972647,1716732654835,-500.0,0.00027671,4]
[327972648,1716732654845,-500.0,0.00027671,4]
[327972649,1716732654856,-500.0,0.00027671,4]
[327972650,1716732654867,-500.0,0.00027671,4]
[327972651,1716732654877,-500.0,0.00027671,4]
[327972652,1716732654886,-500.0,0.00027671,4]
[327972653,1716732654898,-500.0,0.00027671,4]
[327972654,1716732654908,-500.0,0.00027671,4]
[327972655,1716732654918,-500.0,0.00027671,4]
[327972656,1716732654928,-638.58,0.00027671,4]
[327972657,1716732654938,-500.0,0.00027671,4]
[327972658,1716732654948,-500.0,0.00027671,4]
[327972659,1716732654959,-500.0,0.00027671,4]
[327972660,1716732654969,-500.0,0.00027671,4]
[327972661,1716732654979,-492.343625,0.00027671,4]
[327972662,1716732654989,-500.0,0.00027671,4]
[327972663,1716732654999,-500.0,0.00027671,4]
[327972664,1716732655009,-813.06,0.00027671,4]
[327972665,1716732655020,-676.35,0.00027671,4]
[327972666,1716732655031,-1206.79,0.00027671,4]
[327972667,1716732655041,-500.0,0.00027671,4]
[327972668,1716732655052,-500.0,0.00027671,4]
[327972669,1716732655062,-500.0,0.00027671,4]
[327972670,1716732655072,-500.0,0.00027671,4]
[327972671,1716732655082,-500.0,0.00027671,4]
[327972672,1716732655092,-758.9,0.00027671,4]
[327972673,1716732655102,-500.0,0.00027671,4]
[327972674,1716732655113,-500.0,0.00027671,4]
[327972675,1716732655123,-500.0,0.00027671,4]
[327972676,1716732655133,-500.0,0.00027671,4]
[327972677,1716732655144,-500.0,0.00027671,4]
[327972678,1716732655155,-500.0,0.00027671,4]
[327972679,1716732655164,-500.0,0.00027671,4]
[327972680,1716732655174,-226.41130617,0.00027671,4]
[327972681,1716732655184,-544.35,0.00027671,2]
[327972682,1716732655194,-500.0,0.00027671,4]
[327972683,1716732655205,-500.0,0.00027671,4]
[327972684,1716732655215,-500.0,0.00027671,4]
[327972685,1716732655225,-500.0,0.00027671,4]
[327972686,1716732655236,-500.0,0.00027671,4]
[327972687,1716732655246,-500.0,0.00027671,4]
[327972688,1716732655256,-500.0,0.00027671,4]
[327972689,1716732655266,-500.0,0.00027671,4]
[327972690,1716732655277,-324.34295279,0.00027671,4]
[327972691,1716732655287,-607.01,0.00027671,4]
[327972692,1716732655297,-500.0,0.00027671,4]
[327972693,1716732655308,-500.0,0.00027671,4]
[327972694,1716732655319,-869.48,0.00027671,4]
[327972695,1716732655329,-500.0,0.00027671,4]
[327972696,1716732655339,-500.0,0.00027671,4]
[327972697,1716732655350,-598.19,0.00027671,4]
[327972698,1716732655360,-500.0,0.00027671,4]
[327972699,1716732655371,-500.0,0.00027671,4]
[327972700,1716732655381,-500.0,0.00027671,4]
[327972701,1716732655392,-501.39,0.00027671,4]
[327972702,1716732655404,-500.0,0.00027671,4]
[327972703,1716732655414,-565.06,0.00027671,4]
[327972704,1716732655424,-500.0,0.00027671,4]
[327972705,1716732655434,-536.08,0.00027671,4]
[327972706,1716732655445,-500.0,0.00027671,4]
[327972707,1716732655457,-500.0,0.00027671,4]
[327972708,1716732655469,-500.0,0.00027671,4]
[327972709,1716732655479,-500.0,0.00027671,4]
[327972710,1716732655488,-500.0,0.00027671,4]
[327972711,1716732655500,-500.0,0.00027671,4]
[327972712,1716732655510,-500.0,0.00027671,4]
[327972713,1716732655520,-500.0,0.00027671,4]
[327972714,1716732655532,-500.0,0.00027671,4]
[327972715,1716732655542,-500.0,0.00027671,4]
[327972716,1716732655552,-500.0,0.00027671,4]
[327972717,1716732655562,-500.0,0.00027671,4]
[327972718,1716732655572,-500.0,0.00027671,4]
[327972719,1716732655582,-500.0,0.00027671,4]
[327972720,1716732655592,-500.0,0.00027671,4]
[327972721,1716732655604,-500.0,0.00027671,4]
[327972722,1716732655616,-562.99884684,0.00027671,4]
[327972723,1716732655911,-500.0,0.00027671,4]
[327972724,1716732655922,-500.0,0.00027671,4]
[327972725,1716732655932,-500.0,0.00027671,4]
[327972726,1716732655941,-500.0,0.00027671,4]
[327972727,1716732655951,-500.0,0.00027671,4]
[327972728,1716732655961,-500.0,0.00027671,4]
[327972729,1716732655971,-500.0,0.00027671,4]
[327972730,1716732655981,-500.0,0.00027671,4]
[327972731,1716732655991,-575.01,0.00027671,4]
[327972732,1716732656000,-500.0,0.00027671,4]
[327972733,1716732656010,-500.0,0.00027671,4]
[327972734,1716732656019,-500.0,0.00027671,4]
[327972735,1716732656029,-500.0,0.00027671,4]
[327972736,1716732656040,-500.0,0.00027671,4]
[327972737,1716732656049,-179.19,0.00027671,4]
[327972738,1716732656059,-664.28,0.00027671,4]
[327972739,1716732656068,-500.0,0.00027671,4]
[327972740,1716732656077,-500.0,0.00027671,4]
[327972741,1716732656087,-500.0,0.00027671,4]
[327972742,1716732656097,-500.0,0.00027671,4]
[327972743,1716732656107,-500.0,0.00027671,4]
[327972744,1716732656117,-500.0,0.00027671,4]
[327972745,1716732656126,-1420.49,0.00027671,4]
[327972746,1716732656136,-500.0,0.00027671,4]
[327972747,1716732656146,-500.0,0.00027671,4]
[327972748,1716732656157,-500.0,0.00027671,4]
[327972749,1716732656167,-500.0,0.00027671,4]
[327972750,1716732656177,-500.0,0.00027671,4]
[327972751,1716732656187,-911.95,0.00027671,4]
[327972752,1716732656196,-532.91,0.00027671,4]
[327972753,1716732656206,-876.64,0.00027671,4]
[327972754,1716732656215,-500.0,0.00027671,4]
[327972755,1716732656225,-845.02,0.00027671,4]
[327972756,1716732656234,-500.0,0.00027671,4]
[327972757,1716732656244,-1217.15,0.00027671,4]
[327972758,1716732656253,-500.0,0.00027671,4]
[327972759,1716732656263,-500.0,0.00027671,4]
[327972760,1716732656272,-500.0,0.00027671,4]
[327972761,1716732656282,-500.0,0.00027671,4]
[327972762,1716732656291,-500.0,0.00027671,4]
[327972763,1716732656301,-500.0,0.00027671,4]
[327972764,1716732656311,-1573.33,0.00027671,4]
[327972765,1716732656321,-500.0,0.00027671,4]
[327972766,1716732656330,-1943.35,0.00027671,4]
[327972767,1716732656339,-647.0,0.00027671,4]
[327972768,1716732656349,-500.0,0.00027671,4]
[327972769,1716732656360,-827.18,0.00027671,4]
[327972770,1716732656370,-525.9,0.00027671,4]
[327972771,1716732656379,-1647.19,0.00027671,4]
[327972772,1716732656389,-500.0,0.00027671,4]
[327972773,1716732656400,-500.0,0.00027671,4]
[327972774,1716732656411,-656.92,0.00027671,4]
[327972775,1716732656420,-1479.16,0.00027671,4]
[327972776,1716732656430,-859.25,0.00027671,4]
[327972777,1716732656440,-500.0,0.00027671,4]
[327972778,1716732656450,-500.0,0.00027671,4]
[327972779,1716732656465,-500.0,0.00027671,4]
[327972780,1716732656474,-500.0,0.00027671,4]
[327972781,1716732656484,-705.7,0.00027671,4]
[327972782,1716732656493,-500.0,0.00027671,4]
[327972783,1716732656505,-524.26,0.00027671,4]
[327972784,1716732656516,-852.83,0.00027671,4]
[327972785,1716732656526,-792.18,0.00027671,4]
[327972786,1716732656536,-9047.47,0.00027671,4]
[327972787,1716732656546,-2563.75,0.00027671,4]
[327972788,1716732656555,-500.0,0.00027671,4]
[327972789,1716732656565,-500.0,0.00027671,4]
[327972790,1716732656575,-543.61,0.00027671,4]
[327972791,1716732656585,-657.54,0.00027671,4]
[327972792,1716732656595,-937.7,0.00027671,4]
[327972793,1716732656604,-1533.52,0.00027671,4]
[327972794,1716732656614,-782.0,0.00027671,4]
[327972795,1716732656624,-1870.6,0.00027671,4]
[327972796,1716732656634,-500.0,0.00027671,4]
[327972797,1716732656644,-500.0,0.00027671,4]
[327972798,1716732656654,-523.58,0.00027671,4]
[327972799,1716732656664,-662.47,0.00027671,4]
[327972800,1716732656674,-611.87,0.00027671,4]
[327972801,1716732656684,-638.06939756,0.00027671,4]
[327972802,1716732656694,-709.98,0.00027671,4]
[327972803,1716732656703,-500.0,0.00027671,4]
[327972804,1716732656714,-500.0,0.00027671,4]
[327972805,1716732656724,-500.0,0.00027671,4]
[327972806,1716732656733,-739.81,0.00027671,4]
[327972807,1716732656744,-6199.76,0.00027671,4]
[327972808,1716732656754,-627.51879103,0.00027671,4]
[327972809,1716732656764,-500.0,0.00027671,4]
[327972810,1716732656775,-500.0,0.00027671,4]
[327972811,1716732656784,-724.86,0.00027671,4]
[327972812,1716732656794,-1320.63,0.00027671,4]
[327972813,1716732656804,-500.0,0.00027671,4]
[327972814,1716732656815,-500.0,0.00027671,4]
[327972815,1716732656825,-852.95,0.00027671,4]
[327972816,1716732656834,-500.0,0.00027671,4]
[327972817,1716732656844,-500.0,0.00027671,4]
[327972818,1716732656854,-500.0,0.00027671,4]
[327972819,1716732656864,-2564.82,0.00027671,4]
[327972820,1716732656874,-818.52,0.00027671,4]
[327972821,1716732656883,-500.0,0.00027671,4]
[327972822,1716732656894,-2538.12,0.00027671,4]
[327972823,1716732656904,-571.73,0.00027671,4]
[327972824,1716732656915,-500.0,0.00027671,4]
[327972825,1716732656924,-598.56,0.00027671,4]
[327972826,1716732656934,-500.0,0.00027671,4]
[327972827,1716732656943,-2937.07,0.00027671,4]
[327972828,1716732656953,-1041.17,0.00027671,4]
[327972829,1716732656962,-500.0,0.00027671,4]